[Event "Moscow-ch Women 2021"]
[Site "Moscow"]
[Date "2021.03.26"]
[Round "2.5"]
[White "Kunikova, Polina S"]
[Black "Gorovenko, Darya"]
[Result "0-1"]
[ECO "B22"]
[WhiteElo "1028"]
[BlackElo "2106"]
[Annotator "NA"]
[PlyCount "52"]
[EventDate "2021.03.25"]
[EventType "swiss"]
[EventCountry "RUS"]
[SourceTitle "playchess.com"]
[Source "ChessBase"]
[SourceQuality "1"]
[TimeControl "5400+30"]

1. e4 {[%emt 0:00:08]} c5 {[%emt 0:01:27]} 2. c3 {[%emt 0:00:15]} d5 {[%emt 0:00:08]} 3. exd5 {[%emt 0:00:14]} Qd7 {[%emt 1:29:55]} 4. d6 Qxd6 {[%emt 0:00:00]} 5. d3 {[%emt 1:31:53]} Qd5 6. d4 {[%emt 0:00:00]} e5 {[%emt 0:00:00]} 7. Be3 {[%emt 0:00:00]} cxd4 {[%emt 0:00:00]} 8. cxd4 {[%emt 0:00:00]} Nc6 {[%emt 0:00:00]} 9. Nc3 {[%emt 0:00:00]} Bb4 {[%emt 0:00:00]} 10. Qd2 {[%emt 0:00:00]} Bxc3 {[%emt 0:00:00]} 11. bxc3 {[%emt 0:00:00]} exd4 {[%emt 0:00:00]} 12. cxd4 {[%emt 0:00:00]} Nf6 {[%emt 0:00:00]} 13. Ne2 {[%emt 0:00:00]} Ne4 {[%emt 0:00:00]} 14. Nf4 {[%emt 0:00:00]} Qd8 {[%emt 0:00:00]} 15. Qc2 {[%emt 0:00:00]} Bf5 {[%emt 0:00:00]} 16. Bd3 {[%emt 0:00:00]} Qa5+ {[%emt 0:00:00]} 17. Kf1 {[%emt 0:00:00]} Nb4 {[%emt 0:00:00]} 18. Qc4 {[%emt 0:00:00]} Nxd3 {[%emt 0:00:00]} 19. Nxd3 {[%emt 0:00:00]} O-O {[%emt 0:00:00]} 20. Qb4 {[%emt 0:00:00]} Qa6 {[%emt 0:00:00]} 21. Ke2 {[%emt 0:00:00]} Rac8 {[%emt 0:00:00]} 22. Rad1 {[%emt 0:00:00]} Nc3+ {[%emt 0:00:00]} 23. Ke1 {[%emt 0:00:00]} Nxd1 {[%emt 0:00:00]} 24. Kxd1 {[%emt 0:00:00]} Qxd3+ {[%emt 0:00:00]} 25. Bd2 {[%emt 0:00:00]} Rc1+ {[%emt 0:00:00]} 26. Kxc1 {[%emt 0:00:00]} Qc2# {[%emt 0:00:00]} 0-1

[Event "Moscow-ch Women 2021"]
[Site "Moscow"]
[Date "2021.03.26"]
[Round "2.6"]
[White "Cherepanova, Evita"]
[Black "Antonova, Nadezhda"]
[Result "1/2-1/2"]
[ECO "B94"]
[WhiteElo "1621"]
[BlackElo "1877"]
[Annotator "NA"]
[PlyCount "104"]
[EventDate "2021.03.25"]
[EventType "swiss"]
[EventCountry "RUS"]
[SourceTitle "playchess.com"]
[Source "ChessBase"]
[SourceQuality "1"]
[TimeControl "5400+30"]

1. e4 {[%emt 0:00:00]} c5 {[%emt 0:00:00]} 2. Nf3 {[%emt 0:00:00]} d6 {[%emt 0:00:00]} 3. d4 {[%emt 0:00:00]} cxd4 {[%emt 0:00:00]} 4. Nxd4 {[%emt 0:00:00]} Nf6 {[%emt 0:00:06]} 5. Nc3 {[%emt 0:00:00]} a6 {[%emt 0:00:23]} 6. Bg5 {[%emt 0:00:00]} Nbd7 {[%emt 0:00:32]} 7. Qe2 {[%emt 0:00:08]} e6 {[%emt 0:02:53]} 8. O-O-O {[%emt 0:00:37]} Be7 {[%emt 0:01:12]} 9. f4 {[%emt 0:01:48]} Qc7 {[%emt 0:02:30]} 10. Kb1 {[%emt 0:00:40]} O-O {[%emt 0:04:23]} 11. g4 {[%emt 0:02:08]} b5 {[%emt 0:03:08]} 12. Bg2 {[%emt 0:05:38]} Bb7 {[%emt 0:02:49]} 13. e5 {[%emt 0:07:00]} Bxg2 {[%emt 0:13:23]} 14. exf6 {[%emt 0:03:02]} gxf6 {[%emt 0:13:17]} 15. Qxg2 {[%emt 0:01:24]} fxg5 {[%emt 0:00:02]} 16. f5 {[%emt 0:12:24]} Nc5 {[%emt 0:13:05]} 17. h4 {[%emt 0:03:21]} b4 {[%emt 0:06:47]} 18. hxg5 {[%emt 0:04:36]} Bxg5 {[%emt 0:00:45]} 19. Ne4 {[%emt 0:01:56]} Nxe4 {[%emt 0:05:12]} 20. Qxe4 {[%emt 0:00:54]} d5 {[%emt 0:00:11]} 21. Qd3 {[%emt 0:03:40]} ({Don't go for} 21. Nxe6 $2 fxe6 22. Qxe6+ Qf7 $19) 21... Rfe8 $18 {[%emt 0:12:59]} (21... Qf4 $142 22. fxe6 Qe4) 22. Rxh7 {[%emt 0:06:30]} Kxh7 {[%emt 0:05:23]} 23. Nf3 {[%emt 0:08:23]} Qf4 {[%emt 0:06:41]} 24. fxe6+ {[%emt 0:12:15]} Kg7 {[%emt 0:00:38]} 25. Nxg5 {[%emt 0:08:26]} Qxg5 {[%emt 0:00:14]} 26. exf7 {[%emt 0:00:28]} Re3 {[%emt 0:01:09]} 27. Qd4+ {[%emt 0:02:00]} Qe5 {[%emt 0:01:01]} 28. Qxb4 {[%emt 0:03:59]} Rb8 {[%emt 0:00:42]} 29. f8=Q+ {[%emt 0:00:06]} Rxf8 {[%emt 0:00:03]} 30. Qb7+ {[%emt 0:01:37]} Rf7 {[%emt 0:00:03]} 31. Qxa6 {[%emt 0:00:16]} Re1 {[%emt 0:00:17]} 32. Qd3 {[%emt 0:00:25]} Qe3 {[%emt 0:04:57]} 33. Qxd5 {[%emt 0:00:35]} Rff1 {[%emt 0:00:05]} 34. Qb7+ {[%emt 0:01:37]} Rf7 {[%emt 0:01:00]} 35. Qd5 {[%emt 0:00:03]} Rxd1+ {[%emt 0:00:31]} 36. Qxd1 {[%emt 0:00:09]} Qh3 {[%emt 0:00:28]} 37. Qd4+ {[%emt 0:00:09]} Kg6 {[%emt 0:00:36]} 38. Qd3+ {[%emt 0:01:06]} Qxd3 {[%emt 0:00:03]} 39. cxd3 {[%emt 0:12:10]} Rf2 {[%emt 0:00:15]} 40. a3 {[%emt 0:00:00]} Kf6 {[%emt 0:00:04]} 41. Ka2 {[%emt 0:00:00]} Ke5 {[%emt 0:00:05]} 42. Kb3 {[%emt 0:00:00]} Kd4 {[%emt 0:00:09]} 43. a4 {[%emt 0:00:00]} Kxd3 {[%emt 0:00:13]} 44. a5 {[%emt 0:00:00]} Rf4 {[%emt 0:01:11]} 45. g5 {[%emt 0:00:00]} Rg4 {[%emt 0:01:13]} 46. a6 {[%emt 0:00:00]} Rxg5 {[%emt 0:01:35]} 47. Kb4 {[%emt 0:00:00]} Rg4+ {[%emt 0:00:23]} 48. Kb5 {[%emt 0:00:00]} Rg2 {[%emt 0:00:12]} 49. a7 {[%emt 0:00:00]} Rxb2+ {[%emt 0:01:04]} 50. Kc6 {[%emt 0:00:00]} Ra2 {[%emt 0:00:34]} 51. Kb7 {[%emt 0:00:00]} Rb2+ {[%emt 0:00:25]} 52. Kc7 {[%emt 0:00:00]} Rf2 {[%emt 0:01:09]} 1/2-1/2

[Event "Moscow-ch Women 2021"]
[Site "Moscow"]
[Date "2021.03.26"]
[Round "2.7"]
[White "Dimitrova, Aleksandra"]
[Black "Paramzina, Anastasya"]
[Result "1/2-1/2"]
[ECO "B90"]
[WhiteElo "2275"]
[BlackElo "2252"]
[Annotator "ChessBase"]
[PlyCount "81"]
[EventDate "2021.03.25"]
[EventType "swiss"]
[EventCountry "RUS"]
[SourceTitle "playchess.com"]
[Source "ChessBase"]
[SourceQuality "1"]
[TimeControl "5400+30"]

1. e4 {[%emt 0:00:00]} c5 {[%emt 0:00:55]} 2. Nf3 {[%emt 0:00:00]} d6 {[%emt 0:00:02]} 3. d4 {[%emt 0:00:00]} cxd4 {[%emt 0:00:03]} 4. Nxd4 {[%emt 0:00:00]} Nf6 {[%emt 0:00:03]} 5. Nc3 {[%emt 0:00:00]} a6 {[%emt 0:00:03]} 6. Nb3 {[%emt 0:00:02]} e6 {[%emt 0:00:34]} 7. g4 {[%emt 0:00:06]} b5 {[%emt 0:00:20]} 8. Bg2 {[%emt 0:02:03]} Bb7 {[%emt 0:00:24]} 9. g5 {[%emt 0:01:22]} Nfd7 {[%emt 0:00:22]} 10. O-O {[%emt 0:01:03]} b4 {[%emt 0:01:04]} 11. Ne2 {[%emt 0:00:36]} Be7 {[%emt 0:00:05]} 12. f4 {[%emt 0:02:41]} Nc6 {[%emt 0:00:41]} 13. Ng3 {[%emt 0:03:11]} g6 {[%emt 0:00:49]} 14. Be3 {[%emt 0:19:01]} e5 {[%emt 0:01:07]} 15. f5 {[%emt 0:10:50]} Bxg5 {[%emt 0:00:54]} 16. Bxg5 {[%emt 0:00:10]} Qxg5 {[%emt 0:00:15]} 17. Qxd6 {[%emt 0:00:05]} Qe7 {[%emt 0:01:49]} 18. Qxe7+ {[%emt 0:13:20]} Kxe7 {[%emt 0:01:45]} 19. a3 {[%emt 0:00:14]} a5 {[%emt 0:00:47]} 20. axb4 {[%emt 0:03:03]} axb4 {[%emt 0:00:17]} 21. Rfd1 {[%emt 0:01:49]} Rxa1 {[%emt 0:06:10]} 22. Rxa1 {[%emt 0:00:09]} Ra8 {[%emt 0:00:06]} 23. Rxa8 {[%emt 0:00:51]} Bxa8 {[%emt 0:00:03]} 24. Kf2 {[%emt 0:07:11]} Kd6 {[%emt 0:14:42]} 25. Nf1 {[%emt 0:05:32]} Nb6 {[%emt 0:04:46]} 26. Ne3 {[%emt 0:03:58]} Nd4 {[%emt 0:01:11]} 27. Nd2 {[%emt 0:02:25]} Kc5 {[%emt 0:04:14]} 28. c3 {[%emt 0:09:07]} bxc3 {[%emt 0:09:19]} 29. bxc3 {[%emt 0:00:07]} Nc6 {[%emt 0:04:32]} 30. Nd5 {[%emt 0:04:24]} Nxd5 {[%emt 0:14:38]} 31. exd5 {[%emt 0:00:04]} Nd8 {[%emt 0:00:05]} 32. fxg6 {[%emt 0:03:42]} fxg6 {[%emt 0:01:21]} 33. c4 {[%emt 0:03:42]} Kd4 {[%emt 0:00:20]} 34. Nf3+ {[%emt 0:01:39]} Kxc4 {[%emt 0:01:17]} 35. Nxe5+ {[%emt 0:00:03]} Kc5 {[%emt 0:00:37]} 36. Nd7+ {[%emt 0:00:39]} Kd6 {[%emt 0:02:29]} 37. Nf8 {[%emt 0:00:20]} Bxd5 {[%emt 0:00:31]} 38. Bxd5 {[%emt 0:00:19]} Kxd5 {[%emt 0:00:04]} 39. Nxh7 {[%emt 0:00:04]} Ke5 {[%emt 0:00:40]} 40. Ng5 {[%emt 0:00:07]} Ne6 {[%emt 0:00:35]} 41. Nxe6 {[%emt 0:00:05]} 1/2-1/2

[Event "Moscow-ch Women 2021"]
[Site "Moscow"]
[Date "2021.03.26"]
[Round "2.8"]
[White "Ivanova, Anastasia S."]
[Black "Barkasheva, Sofia"]
[Result "1-0"]
[ECO "E95"]
[WhiteElo "1830"]
[BlackElo "1634"]
[Annotator "NA"]
[PlyCount "63"]
[EventDate "2021.03.25"]
[EventType "swiss"]
[EventCountry "RUS"]
[SourceTitle "playchess.com"]
[Source "ChessBase"]
[SourceQuality "1"]
[TimeControl "5400+30"]

1. d4 {[%emt 0:00:00]} Nf6 {[%emt 0:01:42]} 2. c4 {[%emt 0:00:00]} g6 {[%emt 0:00:15]} 3. Nc3 {[%emt 0:00:00]} Bg7 {[%emt 0:00:13]} 4. e4 {[%emt 0:00:00]} d6 {[%emt 0:00:03]} 5. Nf3 {[%emt 0:00:00]} O-O {[%emt 0:00:08]} 6. Be2 {[%emt 0:00:00]} Nbd7 {[%emt 0:00:08]} 7. O-O {[%emt 0:00:00]} e5 {[%emt 0:00:30]} 8. Re1 {[%emt 0:01:30]} c6 {[%emt 0:04:23] 8...Re8 deserves study.} 9. Bf1 {[%emt 0:00:54]} Nh5 {[%emt 0:03:56]} 10. Be3 {[%emt 0:02:54] [#]} exd4 $146 {[%emt 0:08:01]} ({Predecessor:} 10... Qe8 11. Qc2 f5 12. Rad1 f4 13. Bc1 exd4 14. Nxd4 Ne5 15. f3 Qe7 16. b3 Bf6 17. Rd2 {0-1 (28) Primel,D (1946)-Eugene,F (2226) Angers 2016}) 11. Nxd4 {[%emt 0:04:08]} Ne5 {[%emt 0:01:39]} 12. f3 {[%emt 0:05:33]} Be6 {[%emt 0:17:47]} 13. b3 {[%emt 0:03:58]} Qe7 {[%emt 0:03:01]} 14. Qd2 {[%emt 0:01:13]} Qc7 {[%emt 0:10:56]} 15. Rad1 {[%emt 0:03:20]} Rad8 {[%emt 0:00:57]} 16. Bg5 {[%emt 0:01:03]} Bf6 {[%emt 0:07:57]} 17. Bxf6 {[%emt 0:09:02]} Nxf6 {[%emt 0:00:06]} 18. Qg5 {[%emt 0:01:56]} Kg7 {[%emt 0:01:01]} 19. f4 {[%emt 0:03:22]} Neg4 {[%emt 0:04:21]} 20. e5 {[%emt 0:01:46]} dxe5 {[%emt 0:01:20]} 21. fxe5 {[%emt 0:00:13]} Kg8 {[%emt 0:05:00]} 22. c5 {[%emt 0:07:30]} Bc8 $18 {[%emt 0:06:33]} 23. Bc4 {[%emt 0:10:11]} Nd5 {[%emt 0:03:52]} 24. Ne4 {[%emt 0:13:17]} h6 {[%emt 0:02:04]} 25. Qh4 {[%emt 0:02:38]} Kg7 {[%emt 0:04:41]} 26. Nd6 {[%emt 0:09:01]} Nge3 {[%emt 0:04:00]} 27. Rd3 {[%emt 0:02:46]} Nxc4 {[%emt 0:00:25]} 28. bxc4 {[%emt 0:00:30]} g5 {[%emt 0:00:48]} 29. N4f5+ {[%emt 0:01:48]} Bxf5 {[%emt 0:02:39]} 30. Nxf5+ {[%emt 0:00:04]} Kg6 {[%emt 0:00:49]} 31. Qxh6+ {[%emt 0:00:12]} Kxf5 {[%emt 0:00:04]} 32. g4+ {[%emt 0:00:51]} 1-0

[Event "Moscow-ch Women 2021"]
[Site "Moscow"]
[Date "2021.03.26"]
[Round "2.9"]
[White "Lyutsinger, Iren"]
[Black "Korovina, Yana"]
[Result "1-0"]
[ECO "B25"]
[WhiteElo "1464"]
[BlackElo "1531"]
[Annotator "NA"]
[PlyCount "65"]
[EventDate "2021.03.25"]
[EventType "swiss"]
[EventCountry "RUS"]
[SourceTitle "playchess.com"]
[Source "ChessBase"]
[SourceQuality "1"]
[TimeControl "5400+30"]

1. e4 {[%emt 0:00:00]} c5 {[%emt 0:00:00]} 2. Nc3 {[%emt 0:00:00]} e5 {[%emt 0:00:00]} 3. g3 {[%emt 0:00:00]} Nc6 {[%emt 0:00:08]} 4. Bg2 {[%emt 0:00:08]} g6 {[%emt 0:00:13]} 5. d3 {[%emt 0:00:05]} Bg7 {[%emt 0:00:04]} 6. f4 {[%emt 0:00:09]} d6 {[%emt 0:00:05]} 7. Nf3 {[%emt 0:00:13]} Nge7 {[%emt 0:00:15]} 8. O-O {[%emt 0:00:27]} O-O {[%emt 0:00:13]} 9. Be3 {[%emt 0:02:43]} Nd4 {[%emt 0:01:08]} 10. Rb1 {[%emt 0:02:06]} a5 {[%emt 0:02:40]} 11. Ne2 {[%emt 0:03:05]} Nec6 {[%emt 0:02:57]} 12. c3 {[%emt 0:01:36]} Nxf3+ {[%emt 0:03:01]} 13. Bxf3 {[%emt 0:00:27]} f5 {[%emt 0:06:38]} 14. fxe5 {[%emt 0:10:50]} Nxe5 {[%emt 0:05:17]} 15. Nf4 {[%emt 0:09:34]} fxe4 {[%emt 0:08:29]} 16. Bxe4 {[%emt 0:04:37]} Ng4 {[%emt 0:05:17]} 17. Bf2 {[%emt 0:06:07]} Nxf2 {[%emt 0:05:11]} 18. Rxf2 {[%emt 0:00:50]} Rb8 {[%emt 0:02:24]} 19. Qb3+ {[%emt 0:03:13]} Kh8 {[%emt 0:00:18]} 20. Bxg6 {[%emt 0:05:29]} hxg6 {[%emt 0:01:29]} 21. Nxg6+ {[%emt 0:00:36]} Kh7 {[%emt 0:00:11]} 22. Nxf8+ {[%emt 0:00:10]} Bxf8 {[%emt 0:00:19]} 23. Qf7+ {[%emt 0:00:19]} Bg7 {[%emt 0:02:02]} 24. Rf4 {[%emt 0:01:38]} Bh3 {[%emt 0:05:30]} 25. Re1 {[%emt 0:04:20]} Qg5 {[%emt 0:02:11]} 26. Re7 {[%emt 0:02:41]} Rg8 {[%emt 0:01:16]} 27. Rh4+ {[%emt 0:03:56]} Qxh4 {[%emt 0:00:18]} 28. gxh4 {[%emt 0:00:10]} Bg4 {[%emt 0:00:12]} 29. h5 {[%emt 0:01:01]} b5 {[%emt 0:00:30]} 30. Qg6+ {[%emt 0:00:37]} Kh8 {[%emt 0:00:02]} 31. Re8 {[%emt 0:01:48]} Rxe8 {[%emt 0:00:40]} 32. Qxe8+ {[%emt 0:01:37]} Kh7 {[%emt 0:00:03]} 33. Qg6+ {[%emt 0:00:14]} 1-0

[Event "Moscow-ch Women 2021"]
[Site "Moscow"]
[Date "2021.03.26"]
[Round "2.10"]
[White "Kuznetsova, Veronika"]
[Black "Gerasimova, Maria V."]
[Result "1-0"]
[ECO "B13"]
[WhiteElo "1343"]
[BlackElo "1166"]
[Annotator "NA"]
[PlyCount "113"]
[EventDate "2021.03.25"]
[EventType "swiss"]
[EventCountry "RUS"]
[SourceTitle "playchess.com"]
[Source "ChessBase"]
[SourceQuality "1"]
[TimeControl "5400+30"]

1. e4 {[%emt 0:00:00]} c6 {[%emt 0:00:00]} 2. d4 {[%emt 0:00:00]} d5 {[%emt 0:00:00]} 3. exd5 {[%emt 0:00:00]} cxd5 {[%emt 0:00:00]} 4. Bd3 {[%emt 0:00:00]} Nc6 {[%emt 0:00:00]} 5. c3 {[%emt 0:00:00]} Qc7 {[%emt 0:00:00]} 6. h3 {[%emt 0:00:02]} e6 {[%emt 0:00:10]} 7. Nf3 {[%emt 0:00:06]} Bd6 {[%emt 0:00:09]} 8. O-O {[%emt 0:00:11]} Nge7 {[%emt 0:00:07]} 9. Be3 {[%emt 0:01:10]} f6 {[%emt 0:00:09]} 10. Bc2 {[%emt 0:02:36]} Bd7 {[%emt 0:05:30]} 11. Nbd2 {[%emt 0:06:50]} O-O {[%emt 0:02:25]} 12. Re1 {[%emt 0:03:52]} e5 {[%emt 0:02:53]} 13. dxe5 {[%emt 0:03:06]} fxe5 {[%emt 0:00:41]} 14. Bb3 {[%emt 0:05:55]} Kh8 {[%emt 0:01:30]} 15. Nf1 {[%emt 0:06:20]} e4 {[%emt 0:05:53]} 16. Nd4 {[%emt 0:01:32]} Ne5 {[%emt 0:01:15]} 17. Ba4 {[%emt 0:12:34]} Bxa4 {[%emt 0:02:19]} 18. Qxa4 {[%emt 0:00:16]} Nd3 {[%emt 0:01:48]} 19. Ne6 {[%emt 0:09:53]} Qc6 {[%emt 0:01:45]} 20. Qxc6 {[%emt 0:00:18]} bxc6 {[%emt 0:00:12]} 21. Nxf8 {[%emt 0:00:27]} Nxe1 {[%emt 0:00:05]} 22. Rxe1 {[%emt 0:00:34]} Rxf8 {[%emt 0:00:07]} 23. Bc1 {[%emt 0:11:56]} Bc5 {[%emt 0:01:06]} 24. Be3 {[%emt 0:00:12]} Bxe3 {[%emt 0:01:32]} 25. Nxe3 {[%emt 0:00:33]} Ng6 {[%emt 0:01:18]} 26. Nc2 {[%emt 0:04:57]} Nf4 {[%emt 0:00:37]} 27. Ne3 {[%emt 0:04:41]} Nd3 {[%emt 0:00:25]} 28. Re2 {[%emt 0:00:05]} Rb8 {[%emt 0:00:42]} 29. b3 {[%emt 0:00:18]} Rb6 {[%emt 0:00:22]} 30. Rd2 {[%emt 0:03:31]} Ra6 {[%emt 0:01:06]} 31. f3 {[%emt 0:03:24]} h6 {[%emt 0:00:47]} 32. c4 {[%emt 0:02:37]} d4 {[%emt 0:01:35]} 33. fxe4 {[%emt 0:04:02]} Nc1 {[%emt 0:00:38]} 34. Nf5 {[%emt 0:03:26]} c5 {[%emt 0:00:48]} 35. e5 {[%emt 0:06:18]} g6 {[%emt 0:00:37]} 36. Nxh6 {[%emt 0:00:55]} Nxa2 {[%emt 0:00:58]} 37. Ng4 {[%emt 0:00:48]} Nc1 {[%emt 0:00:15]} 38. Rb2 {[%emt 0:01:49]} Rb6 {[%emt 0:00:23]} 39. Rb1 {[%emt 0:01:20]} Nxb3 {[%emt 0:00:19]} 40. e6 {[%emt 0:00:55]} Kg7 {[%emt 0:00:24]} 41. Re1 {[%emt 0:00:52]} Kf8 {[%emt 0:00:25]} 42. Nf6 {[%emt 0:00:35]} Rb7 {[%emt 0:00:39]} 43. Nd5 {[%emt 0:00:23]} Rb8 {[%emt 0:01:40]} 44. e7+ {[%emt 0:00:09]} Kf7 {[%emt 0:00:07]} 45. Nc7 {[%emt 0:00:14]} d3 {[%emt 0:00:08]} 46. e8=Q+ {[%emt 0:03:18]} Rxe8 {[%emt 0:00:09]} 47. Nxe8 {[%emt 0:00:00]} d2 {[%emt 0:00:19]} 48. Nd6+ {[%emt 0:01:00]} Kf6 {[%emt 0:00:09]} 49. Ne4+ {[%emt 0:00:00]} Kf5 {[%emt 0:00:16]} 50. Nxd2 {[%emt 0:00:00]} Nxd2 {[%emt 0:00:06]} 51. Kf2 {[%emt 0:00:00]} a5 {[%emt 0:00:45]} 52. Ke2 {[%emt 0:00:01]} Nb3 {[%emt 0:00:06]} 53. Kd3 {[%emt 0:00:25]} a4 {[%emt 0:00:23]} 54. Kc3 {[%emt 0:00:24]} Kf4 {[%emt 0:00:07]} 55. Re2 {[%emt 0:00:39]} g5 {[%emt 0:00:43]} 56. Ra2 {[%emt 0:01:00]} Kg3 {[%emt 0:00:42]} 57. Rxa4 {[%emt 0:00:37]} 1-0

[Event "Moscow-ch Women 2021"]
[Site "Moscow"]
[Date "2021.03.27"]
[Round "3.1"]
[White "Charochkina, Daria"]
[Black "Gorovenko, Darya"]
[Result "1-0"]
[ECO "B31"]
[WhiteElo "2337"]
[BlackElo "2106"]
[Annotator "NA"]
[PlyCount "67"]
[EventDate "2021.03.25"]
[EventType "swiss"]
[EventCountry "RUS"]
[SourceTitle "playchess.com"]
[Source "ChessBase"]
[SourceQuality "1"]
[TimeControl "5400+30"]

1. e4 {[%emt 0:04:17]} c5 {[%emt 0:12:36]} 2. Na3 {[%emt 0:00:06]} d6 {[%emt 0:00:19]} 3. c3 {[%emt 0:00:07]} Nf6 {[%emt 0:00:15]} 4. g3 {[%emt 0:00:12]} Nc6 {[%emt 0:02:01]} 5. Bg2 {[%emt 0:00:19]} e5 {[%emt 0:00:15]} 6. Ne2 {[%emt 0:01:55]} Be7 {[%emt 0:01:47]} 7. O-O {[%emt 0:13:41]} O-O {[%emt 0:03:13]} 8. d4 {[%emt 0:19:44]} a6 {[%emt 0:24:14]} 9. d5 {[%emt 0:02:11]} Na7 $14 {[%emt 0:03:11]} 10. Nc2 {[%emt 0:01:29]} c4 {[%emt 0:03:29]} 11. Ne3 {[%emt 0:10:05]} b5 {[%emt 0:01:09]} 12. h3 {[%emt 0:00:52]} Qb6 {[%emt 0:11:39]} 13. Kh2 {[%emt 0:06:13]} h5 {[%emt 0:04:53]} 14. f4 {[%emt 0:00:36]} a5 {[%emt 0:04:40]} 15. f5 {[%emt 0:02:38]} Ba6 {[%emt 0:04:22]} 16. b4 {[%emt 0:04:40]} axb4 {[%emt 0:08:36]} 17. cxb4 {[%emt 0:00:06]} Nc8 {[%emt 0:00:10]} 18. Nc3 {[%emt 0:07:03]} Qd4 {[%emt 0:01:57]} 19. Bd2 {[%emt 0:01:40]} Rb8 {[%emt 0:02:41]} 20. Nc2 {[%emt 0:01:14]} Qa7 {[%emt 0:00:09]} 21. Bf3 {[%emt 0:00:21]} g6 {[%emt 0:01:57]} 22. g4 {[%emt 0:03:36]} hxg4 {[%emt 0:00:06]} 23. Bxg4 {[%emt 0:00:12]} Kg7 {[%emt 0:00:21]} 24. Be3 {[%emt 0:03:50]} Qc7 {[%emt 0:00:06]} 25. Rg1 {[%emt 0:00:27]} Bd8 {[%emt 0:03:12]} 26. Qf3 {[%emt 0:02:56]} Ne7 {[%emt 0:02:18]} 27. Bg5 {[%emt 0:07:34]} Neg8 {[%emt 0:00:06]} 28. Bxf6+ {[%emt 0:03:11]} Bxf6 {[%emt 0:00:54]} 29. fxg6 {[%emt 0:00:02]} fxg6 {[%emt 0:00:58]} 30. Bf5 {[%emt 0:00:11]} Ne7 {[%emt 0:00:05]} 31. Qh5 {[%emt 0:01:01]} Nxf5 {[%emt 0:01:20]} 32. Rxg6+ {[%emt 0:00:50]} Kf7 {[%emt 0:00:04]} 33. Rg7+ {[%emt 0:00:02]} Kxg7 {[%emt 0:00:13]} 34. Rg1+ {[%emt 0:00:03]} 1-0